[Event "Late-Titled-Tuesday-Blitz-January-30-2024"]
[Site "Chess.com"]
[Date "2024.01.30"]
[Round "1"]
[White "BardArtem"]
[Black "Slovineanu"]
[Result "1-0"]
[WhiteElo "2797"]
[BlackElo "2461"]
[TimeControl "180+1"]
[EndTime "14:07:41 PST"]
[Termination "BardArtem won on time"]

1. e4 {[%clk 0:03:00.9]} 1... c6 {[%clk 0:02:57.5]} 2. Nf3 {[%clk 0:02:58.7]}
2... d5 {[%clk 0:02:57.7]} 3. exd5 {[%clk 0:02:59.6]} 3... cxd5 {[%clk
0:02:57.7]} 4. Ne5 {[%clk 0:03:00]} 4... Nc6 {[%clk 0:02:55.5]} 5. d4 {[%clk
0:03:00]} 5... Nf6 {[%clk 0:02:53]} 6. c3 {[%clk 0:02:59.9]} 6... a6 {[%clk
0:02:49.3]} 7. Nd2 {[%clk 0:02:57.3]} 7... Bf5 {[%clk 0:02:48.7]} 8. Ndf3 {[%clk
0:02:50.1]} 8... e6 {[%clk 0:02:47.8]} 9. Nxc6 {[%clk 0:02:49.4]} 9... bxc6
{[%clk 0:02:47.5]} 10. Ne5 {[%clk 0:02:50.3]} 10... Qc7 {[%clk 0:02:37.5]} 11.
Qa4 {[%clk 0:02:47.5]} 11... Rc8 {[%clk 0:02:24.8]} 12. Qxa6 {[%clk 0:02:17.8]}
12... Bd6 {[%clk 0:02:22.3]} 13. Nxc6 {[%clk 0:01:54.5]} 13... O-O {[%clk
0:02:21.6]} 14. Na7 {[%clk 0:01:54.8]} 14... Ra8 {[%clk 0:01:18]} 15. Nb5 {[%clk
0:01:53.8]} 15... Rxa6 {[%clk 0:01:18]} 16. Nxc7 {[%clk 0:01:54.1]} 16... Ra5
{[%clk 0:01:18.3]} 17. Nb5 {[%clk 0:01:52.3]} 17... Bb8 {[%clk 0:01:11.7]} 18.
Bd2 {[%clk 0:01:38.2]} 18... e5 {[%clk 0:01:07.9]} 19. f3 {[%clk 0:01:21.4]}
19... Re8 {[%clk 0:01:05.1]} 20. Kf2 {[%clk 0:01:21.3]} 20... e4 {[%clk
0:00:49.2]} 21. a4 {[%clk 0:01:09.6]} 21... exf3 {[%clk 0:00:39.2]} 22. gxf3
{[%clk 0:01:08]} 22... Bc2 {[%clk 0:00:38.9]} 23. c4 {[%clk 0:01:00.4]} 23...
Rxa4 {[%clk 0:00:38.9]} 24. Rxa4 {[%clk 0:01:00.2]} 24... Bxa4 {[%clk
0:00:39.2]} 25. Nc3 {[%clk 0:00:58.5]} 25... Bb3 {[%clk 0:00:31.4]} 26. c5
{[%clk 0:00:58]} 26... Bc7 {[%clk 0:00:24.1]} 27. Bb5 {[%clk 0:00:55.7]} 27...
Ra8 {[%clk 0:00:22.5]} 28. Bg5 {[%clk 0:00:44.8]} 28... Ba5 {[%clk 0:00:16.9]}
29. Ra1 {[%clk 0:00:41.1]} 29... Kf8 {[%clk 0:00:13.2]} 30. Bxf6 {[%clk
0:00:41]} 30... gxf6 {[%clk 0:00:13.2]} 31. Bc6 {[%clk 0:00:41.7]} 31... Ra7
{[%clk 0:00:10]} 32. Bxd5 {[%clk 0:00:41.7]} 32... Bxc3 {[%clk 0:00:07.6]} 33.
Rxa7 {[%clk 0:00:41.5]} 33... Bxd4+ {[%clk 0:00:07.8]} 34. Kg2 {[%clk
0:00:38.9]} 34... Bxd5 {[%clk 0:00:07.7]} 35. Rd7 {[%clk 0:00:39.2]} 35... Bxf3+
{[%clk 0:00:07.7]} 36. Kxf3 {[%clk 0:00:40.1]} 36... Bxb2 {[%clk 0:00:07.9]} 37.
c6 {[%clk 0:00:40]} 37... Ke8 {[%clk 0:00:07.7]} 38. Rb7 {[%clk 0:00:29.4]}
38... Be5 {[%clk 0:00:07.5]} 39. h4 {[%clk 0:00:28.9]} 39... f5 {[%clk
0:00:07.6]} 40. Rb5 {[%clk 0:00:18.5]} 40... f6 {[%clk 0:00:06.8]} 41. Rb7
{[%clk 0:00:19.1]} 41... h5 {[%clk 0:00:04.1]} 42. Rh7 {[%clk 0:00:19.8]} 42...
Kd8 {[%clk 0:00:04.2]} 43. Rxh5 {[%clk 0:00:20.4]} 43... Kc7 {[%clk 0:00:04.8]}
44. Rxf5 {[%clk 0:00:19.6]} 44... Kxc6 {[%clk 0:00:05.2]} 45. h5 {[%clk
0:00:17.6]} 45... Kd6 {[%clk 0:00:03.8]} 46. h6 {[%clk 0:00:17.3]} 46... Ke6
{[%clk 0:00:01.5]} 47. Rxe5+ {[%clk 0:00:16.4]} 1-0

[Event "Late-Titled-Tuesday-Blitz-January-30-2024"]
[Site "Chess.com"]
[Date "2024.01.30"]
[Round "1"]
[White "ansko1999"]
[Black "ilushka"]
[Result "1-0"]
[WhiteElo "2670"]
[BlackElo "2371"]
[TimeControl "180+1"]
[EndTime "14:07:41 PST"]
[Termination "ansko1999 won on time"]

1. d4 {[%clk 0:02:54]} 1... e6 {[%clk 0:03:00.4]} 2. e4 {[%clk 0:02:51.9]} 2...
d5 {[%clk 0:03:00.2]} 3. e5 {[%clk 0:02:52.1]} 3... c5 {[%clk 0:03:00.1]} 4. c3
{[%clk 0:02:52.4]} 4... Nc6 {[%clk 0:03:00.7]} 5. Nf3 {[%clk 0:02:52.4]} 5...
Nh6 {[%clk 0:03:00.9]} 6. Bxh6 {[%clk 0:02:50.6]} 6... gxh6 {[%clk 0:03:01.8]}
7. Bb5 {[%clk 0:02:50.8]} 7... Qb6 {[%clk 0:03:00.7]} 8. Qe2 {[%clk 0:02:39.6]}
8... Bd7 {[%clk 0:02:50.3]} 9. dxc5 {[%clk 0:02:31.2]} 9... Bxc5 {[%clk
0:02:46.3]} 10. O-O {[%clk 0:02:31.2]} 10... a6 {[%clk 0:02:31.2]} 11. Ba4
{[%clk 0:02:09.1]} 11... O-O-O {[%clk 0:02:29.2]} 12. b4 {[%clk 0:02:07]} 12...
Be7 {[%clk 0:02:28.8]} 13. Nbd2 {[%clk 0:02:04.2]} 13... Kb8 {[%clk 0:02:26.3]}
14. Rab1 {[%clk 0:01:42.5]} 14... Rhg8 {[%clk 0:02:14.8]} 15. b5 {[%clk
0:01:36.8]} 15... axb5 {[%clk 0:02:00.4]} 16. Rxb5 {[%clk 0:01:35.6]} 16... Qa6
{[%clk 0:01:55]} 17. Rfb1 {[%clk 0:00:45.7]} 17... Qxa4 {[%clk 0:01:20.5]} 18.
Rxb7+ {[%clk 0:00:44.8]} 18... Kc8 {[%clk 0:01:20]} 19. Nd4 {[%clk 0:00:41.9]}
19... Bc5 {[%clk 0:00:57.1]} 20. N2b3 {[%clk 0:00:07.8]} 20... Bxd4 {[%clk
0:00:41.1]} 21. cxd4 {[%clk 0:00:07.3]} 21... Qc4 {[%clk 0:00:20.4]} 22. Qd2
{[%clk 0:00:05.6]} 22... Kxb7 {[%clk 0:00:12]} 23. Na5+ {[%clk 0:00:05.5]} 23...
Kc7 {[%clk 0:00:12.6]} 24. Nxc4 {[%clk 0:00:05.8]} 24... dxc4 {[%clk 0:00:12.8]}
25. d5 {[%clk 0:00:05.1]} 25... exd5 {[%clk 0:00:11.5]} 26. Qe3 {[%clk
0:00:04.5]} 26... Rb8 {[%clk 0:00:10.2]} 27. Rd1 {[%clk 0:00:03.4]} 27... Be6
{[%clk 0:00:09.5]} 28. Qc5 {[%clk 0:00:03.4]} 28... Rgd8 {[%clk 0:00:07.9]} 29.
f4 {[%clk 0:00:03.8]} 29... d4 {[%clk 0:00:07.4]} 30. f5 {[%clk 0:00:02.9]}
30... Bd5 {[%clk 0:00:07.7]} 31. Rxd4 {[%clk 0:00:02.6]} 31... Rb1+ {[%clk
0:00:04.9]} 32. Kf2 {[%clk 0:00:03.1]} 32... Rb2+ {[%clk 0:00:05.5]} 33. Ke3
{[%clk 0:00:03.7]} 33... Rxg2 {[%clk 0:00:02.7]} 34. Rxd5 {[%clk 0:00:03.6]}
34... Rxd5 {[%clk 0:00:02.9]} 35. Qxd5 {[%clk 0:00:03.7]} 35... Rxh2 {[%clk
0:00:02.8]} 36. Qxf7+ {[%clk 0:00:03.8]} 36... Kb6 {[%clk 0:00:02.7]} 37. Qxc4
{[%clk 0:00:02.9]} 37... Rh3+ {[%clk 0:00:02.7]} 38. Kf2 {[%clk 0:00:03.5]}
38... Rf3+ {[%clk 0:00:01.5]} 39. Kg2 {[%clk 0:00:02.6]} 39... Ra3 {[%clk
0:00:01.4]} 40. e6 {[%clk 0:00:02.2]} 40... Ra5 {[%clk 0:00:01.1]} 41. Qf4
{[%clk 0:00:02.2]} 1-0

[Event "Late-Titled-Tuesday-Blitz-January-30-2024"]
[Site "Chess.com"]
[Date "2024.01.30"]
[Round "1"]
[White "IngOscarArdila"]
[Black "NoHeThTo"]
[Result "0-1"]
[WhiteElo "2344"]
[BlackElo "2644"]
[TimeControl "180+1"]
[EndTime "14:07:43 PST"]
[Termination "NoHeThTo won by resignation"]

1. d4 {[%clk 0:02:59.2]} 1... Nf6 {[%clk 0:03:00.1]} 2. c4 {[%clk 0:02:59.1]}
2... g6 {[%clk 0:03:00.5]} 3. Nc3 {[%clk 0:02:59.4]} 3... Bg7 {[%clk 0:03:01.1]}
4. Nf3 {[%clk 0:03:00]} 4... d6 {[%clk 0:03:01.4]} 5. e3 {[%clk 0:03:00.5]} 5...
O-O {[%clk 0:03:02.1]} 6. Be2 {[%clk 0:03:00.9]} 6... Nbd7 {[%clk 0:03:02.6]} 7.
O-O {[%clk 0:03:01.1]} 7... b6 {[%clk 0:03:03.3]} 8. Qc2 {[%clk 0:02:59.9]} 8...
Bb7 {[%clk 0:03:03.7]} 9. Rd1 {[%clk 0:02:57.9]} 9... e6 {[%clk 0:03:02.4]} 10.
b3 {[%clk 0:02:56.1]} 10... Qe7 {[%clk 0:03:02.7]} 11. Bb2 {[%clk 0:02:54.1]}
11... a6 {[%clk 0:03:03]} 12. Rac1 {[%clk 0:02:53.3]} 12... Rfe8 {[%clk
0:03:03]} 13. a3 {[%clk 0:02:52.9]} 13... e5 {[%clk 0:03:03]} 14. dxe5 {[%clk
0:02:53.3]} 14... Nxe5 {[%clk 0:03:02.4]} 15. Nxe5 {[%clk 0:02:50.9]} 15... dxe5
{[%clk 0:03:02.5]} 16. Nd5 {[%clk 0:02:48.8]} 16... Nxd5 {[%clk 0:02:59.7]} 17.
cxd5 {[%clk 0:02:49.7]} 17... Rac8 {[%clk 0:02:59.5]} 18. e4 {[%clk 0:02:48.8]}
18... Red8 {[%clk 0:02:55.5]} 19. b4 {[%clk 0:02:17.3]} 19... c6 {[%clk
0:02:52.6]} 20. dxc6 {[%clk 0:01:59.4]} 20... Rxd1+ {[%clk 0:02:50.2]} 21. Qxd1
{[%clk 0:01:57]} 21... Rxc6 {[%clk 0:02:48.4]} 22. Rxc6 {[%clk 0:01:54.7]} 22...
Bxc6 {[%clk 0:02:49.3]} 23. f3 {[%clk 0:01:51.1]} 23... b5 {[%clk 0:02:44.6]}
24. Qc2 {[%clk 0:01:49.9]} 24... Qd6 {[%clk 0:02:41.4]} 25. Qd3 {[%clk 0:01:48]}
25... Qc7 {[%clk 0:02:32.3]} 26. Kf1 {[%clk 0:01:39.2]} 26... Bf8 {[%clk
0:02:22.4]} 27. Qd2 {[%clk 0:01:36.1]} 27... Be7 {[%clk 0:02:15.9]} 28. Qc3
{[%clk 0:01:35.9]} 28... f6 {[%clk 0:02:15.1]} 29. Qb3+ {[%clk 0:01:35.6]} 29...
Kf8 {[%clk 0:02:12.7]} 30. Qe6 {[%clk 0:01:35.1]} 30... Bd7 {[%clk 0:02:08.2]}
31. Qd5 {[%clk 0:01:32.7]} 31... Bc6 {[%clk 0:02:07]} 32. Qe6 {[%clk 0:01:31.5]}
32... Qd7 {[%clk 0:01:59.4]} 33. Qxd7 {[%clk 0:01:31.3]} 33... Bxd7 {[%clk
0:02:00.3]} 34. Ke1 {[%clk 0:01:31]} 34... Bd6 {[%clk 0:01:59.7]} 35. Kd2 {[%clk
0:01:31.1]} 35... Ke7 {[%clk 0:02:00.2]} 36. Bc3 {[%clk 0:01:31.2]} 36... Be6
{[%clk 0:02:00.5]} 37. Kc2 {[%clk 0:01:28.9]} 37... Kd7 {[%clk 0:01:59.2]} 38.
Bd3 {[%clk 0:01:25.7]} 38... Kc6 {[%clk 0:01:59.5]} 39. Kd2 {[%clk 0:01:25.5]}
39... Bc7 {[%clk 0:01:51.2]} 40. Ke2 {[%clk 0:01:24.6]} 40... Bb6 {[%clk
0:01:51.5]} 41. Kd2 {[%clk 0:01:24.2]} 41... h5 {[%clk 0:01:49.8]} 42. Ke2
{[%clk 0:01:19.9]} 42... h4 {[%clk 0:01:46.6]} 43. h3 {[%clk 0:01:18.3]} 43...
Kd6 {[%clk 0:01:28.4]} 44. Kd2 {[%clk 0:01:17.4]} 44... Ke7 {[%clk 0:01:27.3]}
45. Ke2 {[%clk 0:01:16.2]} 45... Kf7 {[%clk 0:01:26.6]} 46. Kd2 {[%clk
0:01:16.4]} 46... Kg7 {[%clk 0:01:27]} 47. Ke2 {[%clk 0:01:16.6]} 47... Kh6
{[%clk 0:01:27.2]} 48. Bd2+ {[%clk 0:01:16]} 48... Kh5 {[%clk 0:01:27.6]} 49.
Kd1 {[%clk 0:01:03.5]} 49... Bb3+ {[%clk 0:01:26]} 50. Bc2 {[%clk 0:01:01.3]}
50... Bc4 {[%clk 0:01:26.2]} 51. Ke1 {[%clk 0:00:58.8]} 51... Bd4 {[%clk
0:01:26.4]} 52. Bc1 {[%clk 0:00:58.2]} 52... Bg1 {[%clk 0:01:24.1]} 53. Bd1
{[%clk 0:00:57.5]} 53... g5 {[%clk 0:01:19]} 54. Be2 {[%clk 0:00:57.3]} 54...
Be6 {[%clk 0:01:15.1]} 55. Kd2 {[%clk 0:00:56]} 55... Kg6 {[%clk 0:01:12.3]} 56.
Bb2 {[%clk 0:00:53.8]} 56... Bh2 {[%clk 0:01:08.6]} 57. Bc3 {[%clk 0:00:53.5]}
57... Bf4+ {[%clk 0:01:08.5]} 58. Kc2 {[%clk 0:00:53.8]} 58... f5 {[%clk
0:01:06.2]} 59. Bd3 {[%clk 0:00:52.6]} 59... fxe4 {[%clk 0:00:48]} 60. Bxe4+
{[%clk 0:00:52.7]} 60... Kf6 {[%clk 0:00:48.6]} 61. Bb7 {[%clk 0:00:48.4]} 61...
Bc4 {[%clk 0:00:48.8]} 62. Bxa6 {[%clk 0:00:42.7]} 62... Bf1 {[%clk 0:00:48.9]}
63. a4 {[%clk 0:00:43.3]} 63... Bxg2 {[%clk 0:00:49.1]} 64. Bxb5 {[%clk
0:00:39.1]} 64... Bxh3 {[%clk 0:00:47.5]} 65. Bc6 {[%clk 0:00:39]} 65... Bf5+
{[%clk 0:00:47]} 66. Kd1 {[%clk 0:00:35.9]} 66... h3 {[%clk 0:00:46.9]} 67. b5
{[%clk 0:00:19.6]} 67... h2 {[%clk 0:00:46.5]} 68. b6 {[%clk 0:00:20.3]} 68...
h1=Q+ {[%clk 0:00:46.8]} 69. Ke2 {[%clk 0:00:19]} 69... Qg2+ {[%clk 0:00:45.9]}
70. Kd1 {[%clk 0:00:19.3]} 70... Qc2+ {[%clk 0:00:46]} 71. Ke1 {[%clk
0:00:19.6]} 71... Qxc3+ {[%clk 0:00:46.7]} 0-1

[Event "Late-Titled-Tuesday-Blitz-January-30-2024"]
[Site "Chess.com"]
[Date "2024.01.30"]
[Round "1"]
[White "igorknyazev"]
[Black "GoldenShare"]
[Result "0-1"]
[WhiteElo "2119"]
[BlackElo "2572"]
[TimeControl "180+1"]
[EndTime "14:07:46 PST"]
[Termination "GoldenShare won by resignation"]

1. e4 {[%clk 0:02:48]} 1... c6 {[%clk 0:02:59.7]} 2. d4 {[%clk 0:02:47.7]} 2...
d5 {[%clk 0:03:00.6]} 3. Nc3 {[%clk 0:02:48]} 3... dxe4 {[%clk 0:03:00.7]} 4.
Nxe4 {[%clk 0:02:48.6]} 4... Nf6 {[%clk 0:03:01.6]} 5. Nxf6+ {[%clk 0:02:47.7]}
5... exf6 {[%clk 0:03:01.7]} 6. Nf3 {[%clk 0:02:48.3]} 6... Bd6 {[%clk
0:03:02.6]} 7. Bc4 {[%clk 0:02:48.2]} 7... O-O {[%clk 0:03:01.9]} 8. Be3 {[%clk
0:02:39.3]} 8... Bg4 {[%clk 0:03:01.5]} 9. h3 {[%clk 0:02:36.8]} 9... Bh5 {[%clk
0:03:01.7]} 10. g4 {[%clk 0:02:35.5]} 10... Bg6 {[%clk 0:03:01.9]} 11. Nh4
{[%clk 0:02:35]} 11... Nd7 {[%clk 0:03:00.1]} 12. Nxg6 {[%clk 0:02:32.2]} 12...
hxg6 {[%clk 0:03:01]} 13. Bb3 {[%clk 0:02:29.6]} 13... b5 {[%clk 0:02:59.4]} 14.
Qd3 {[%clk 0:02:24.3]} 14... Nb6 {[%clk 0:02:35.1]} 15. Qxg6 {[%clk 0:02:16.2]}
15... Nc4 {[%clk 0:02:31.6]} 16. Bxc4 {[%clk 0:02:13.2]} 16... bxc4 {[%clk
0:02:32.5]} 17. Qh5 {[%clk 0:01:55.4]} 17... Qb6 {[%clk 0:02:28.4]} 18. g5
{[%clk 0:01:49.6]} 18... f5 {[%clk 0:02:25.3]} 19. g6 {[%clk 0:01:46.3]} 19...
fxg6 {[%clk 0:02:26.2]} 20. Qxg6 {[%clk 0:01:46.1]} 20... Rf6 {[%clk 0:02:20.4]}
21. Qg2 {[%clk 0:01:41.1]} 21... Qxb2 {[%clk 0:02:19.9]} 22. O-O {[%clk
0:01:34.3]} 22... f4 {[%clk 0:02:20.1]} 23. Qxc6 {[%clk 0:01:25]} 23... Raf8
{[%clk 0:02:20.3]} 24. Qxc4+ {[%clk 0:01:16.5]} 24... Kh8 {[%clk 0:02:19.9]} 25.
Qb3 {[%clk 0:01:07.3]} 25... Qxb3 {[%clk 0:02:12.5]} 26. axb3 {[%clk 0:01:06.5]}
26... fxe3 {[%clk 0:02:12.3]} 27. fxe3 {[%clk 0:00:53.2]} 27... Rg6+ {[%clk
0:02:12.4]} 28. Kh1 {[%clk 0:00:52.2]} 28... Rxf1+ {[%clk 0:02:13.3]} 29. Rxf1
{[%clk 0:00:51.7]} 29... Rg3 {[%clk 0:02:14.2]} 30. e4 {[%clk 0:00:47.6]} 30...
Rxh3+ {[%clk 0:02:13.7]} 31. Kg2 {[%clk 0:00:47.5]} 31... Rg3+ {[%clk
0:02:11.8]} 32. Kf2 {[%clk 0:00:45]} 32... Rc3 {[%clk 0:02:12.2]} 33. e5 {[%clk
0:00:44.3]} 33... Rxc2+ {[%clk 0:02:12.2]} 34. Ke3 {[%clk 0:00:44]} 34... Bb4
{[%clk 0:02:07.6]} 35. e6 {[%clk 0:00:32.6]} 35... Kg8 {[%clk 0:02:06.5]} 36.
Rf7 {[%clk 0:00:28.2]} 36... a5 {[%clk 0:01:51.5]} 37. d5 {[%clk 0:00:27.6]}
37... Rd2 {[%clk 0:01:29.8]} 38. Ke4 {[%clk 0:00:23.6]} 38... Re2+ {[%clk
0:01:21.3]} 39. Kd4 {[%clk 0:00:22]} 39... Rd2+ {[%clk 0:01:18.1]} 40. Kc4
{[%clk 0:00:22.3]} 40... Rc2+ {[%clk 0:01:18.5]} 41. Kd4 {[%clk 0:00:20.7]}
41... Rc3 {[%clk 0:01:09.6]} 42. Rb7 {[%clk 0:00:20.1]} 42... Rxb3 {[%clk
0:01:06.4]} 43. Rb8+ {[%clk 0:00:20]} 43... Kh7 {[%clk 0:01:04.8]} 44. Rxb4
{[%clk 0:00:17]} 44... Rxb4+ {[%clk 0:01:00.1]} 45. Ke5 {[%clk 0:00:17]} 45...
Kg8 {[%clk 0:00:54.8]} 46. Kd6 {[%clk 0:00:13.2]} 46... a4 {[%clk 0:00:44.8]}
47. Kd7 {[%clk 0:00:13.6]} 47... a3 {[%clk 0:00:43.9]} 48. e7 {[%clk 0:00:14.3]}
48... Rb7+ {[%clk 0:00:35.6]} 49. Kd8 {[%clk 0:00:14.1]} 49... Rxe7 {[%clk
0:00:35.7]} 50. Kxe7 {[%clk 0:00:13.9]} 50... a2 {[%clk 0:00:36.6]} 51. d6
{[%clk 0:00:14.7]} 51... a1=Q {[%clk 0:00:36.6]} 52. d7 {[%clk 0:00:15.6]} 52...
Qd4 {[%clk 0:00:36.8]} 53. d8=N {[%clk 0:00:10.9]} 53... Qxd8+ {[%clk
0:00:37.7]} 54. Kxd8 {[%clk 0:00:10.7]} 54... g5 {[%clk 0:00:37.9]} 55. Ke7
{[%clk 0:00:11.6]} 55... g4 {[%clk 0:00:38.8]} 56. Ke6 {[%clk 0:00:12.5]} 56...
g3 {[%clk 0:00:39.7]} 0-1

[Event "Late-Titled-Tuesday-Blitz-January-30-2024"]
[Site "Chess.com"]
[Date "2024.01.30"]
[Round "1"]
[White "Elsa167"]
[Black "JackRodgers"]
[Result "1-0"]
[WhiteElo "2864"]
[BlackElo "2491"]
[TimeControl "180+1"]
[EndTime "14:07:48 PST"]
[Termination "Elsa167 won by resignation"]

1. d4 {[%clk 0:03:00.9]} 1... Nf6 {[%clk 0:02:59.8]} 2. c4 {[%clk 0:03:01.2]}
2... c5 {[%clk 0:02:59.7]} 3. d5 {[%clk 0:03:00.9]} 3... e5 {[%clk 0:03:00.2]}
4. Nc3 {[%clk 0:03:01]} 4... d6 {[%clk 0:03:00.7]} 5. e4 {[%clk 0:03:01.5]} 5...
Be7 {[%clk 0:03:01.3]} 6. g3 {[%clk 0:03:02]} 6... h5 {[%clk 0:03:00.8]} 7. Nf3
{[%clk 0:02:58]} 7... Na6 {[%clk 0:02:50.1]} 8. Bg2 {[%clk 0:02:57.7]} 8... Nc7
{[%clk 0:02:48.1]} 9. h4 {[%clk 0:02:48.9]} 9... a6 {[%clk 0:02:45.5]} 10. a4
{[%clk 0:02:48.4]} 10... Rb8 {[%clk 0:02:41.2]} 11. a5 {[%clk 0:02:48.9]} 11...
Ng4 {[%clk 0:02:33.1]} 12. O-O {[%clk 0:02:43.5]} 12... Bd7 {[%clk 0:02:28.4]}
13. b3 {[%clk 0:02:38.4]} 13... g6 {[%clk 0:02:25.1]} 14. Nh2 {[%clk 0:02:09.1]}
14... Bxh4 {[%clk 0:01:58.8]} 15. gxh4 {[%clk 0:01:54.2]} 15... Qxh4 {[%clk
0:01:54.6]} 16. Nf3 {[%clk 0:01:54.3]} 16... Qe7 {[%clk 0:01:46]} 17. Re1 {[%clk
0:01:42.9]} 17... O-O {[%clk 0:01:36.9]} 18. Nh2 {[%clk 0:01:17.9]} 18... Qh4
{[%clk 0:01:27.1]} 19. Nxg4 {[%clk 0:01:17.6]} 19... hxg4 {[%clk 0:01:27.6]} 20.
Qd2 {[%clk 0:01:08.5]} 20... Kg7 {[%clk 0:01:23]} 21. Qg5 {[%clk 0:01:08.4]}
21... Qxg5 {[%clk 0:01:08.9]} 22. Bxg5 {[%clk 0:01:09.3]} 22... f6 {[%clk
0:01:09.6]} 23. Bd2 {[%clk 0:01:09.5]} 23... b5 {[%clk 0:01:07.1]} 24. axb6
{[%clk 0:01:07.6]} 24... Rxb6 {[%clk 0:01:06.8]} 25. Ra3 {[%clk 0:01:06]} 25...
Rfb8 {[%clk 0:01:06.1]} 26. Rb1 {[%clk 0:01:05.4]} 26... f5 {[%clk 0:00:55.4]}
27. Nd1 {[%clk 0:01:04]} 27... Ne8 {[%clk 0:00:44.4]} 28. Bf1 {[%clk 0:00:45.4]}
28... f4 {[%clk 0:00:39.5]} 29. Bd3 {[%clk 0:00:45.5]} 29... Nf6 {[%clk
0:00:37.9]} 30. Bc2 {[%clk 0:00:34.2]} 30... g5 {[%clk 0:00:29.1]} 31. Rba1
{[%clk 0:00:34.1]} 31... Bc8 {[%clk 0:00:27]} 32. Kf1 {[%clk 0:00:30.2]} 32...
Kf7 {[%clk 0:00:21.7]} 33. Ke2 {[%clk 0:00:30.5]} 33... Ke7 {[%clk 0:00:20.5]}
34. Kd3 {[%clk 0:00:29.9]} 34... Kd8 {[%clk 0:00:20.8]} 35. Kc3 {[%clk
0:00:30.1]} 35... Kc7 {[%clk 0:00:21.2]} 36. Kd3 {[%clk 0:00:30.1]} 36... Kb7
{[%clk 0:00:21]} 37. Ba5 {[%clk 0:00:29.7]} 37... Ka7 {[%clk 0:00:21.5]} 38.
Bxb6+ {[%clk 0:00:30.1]} 38... Kxb6 {[%clk 0:00:21.9]} 39. Nc3 {[%clk
0:00:29.8]} 39... Bb7 {[%clk 0:00:20.2]} 40. Rh1 {[%clk 0:00:29.7]} 40... Rf8
{[%clk 0:00:17.8]} 41. Rh6 {[%clk 0:00:29.4]} 41... Ka7 {[%clk 0:00:15.4]} 42.
Ra1 {[%clk 0:00:28.8]} 42... g3 {[%clk 0:00:15.7]} 43. fxg3 {[%clk 0:00:28.6]}
43... Ng4 {[%clk 0:00:16.1]} 44. Rh7 {[%clk 0:00:24]} 44... fxg3 {[%clk
0:00:08.1]} 45. Nb5+ {[%clk 0:00:23.8]} 45... Kb6 {[%clk 0:00:08]} 46. Nxd6
{[%clk 0:00:24.2]} 46... Nf2+ {[%clk 0:00:07.9]} 47. Ke2 {[%clk 0:00:23.3]}
47... Ba8 {[%clk 0:00:08]} 48. Rg1 {[%clk 0:00:17.6]} 48... Ka5 {[%clk
0:00:07.3]} 49. Rxg3 {[%clk 0:00:16]} 49... Kb4 {[%clk 0:00:07.9]} 50. Rf7
{[%clk 0:00:15.1]} 50... Rxf7 {[%clk 0:00:07.4]} 51. Nxf7 {[%clk 0:00:16]} 1-0

[Event "Late-Titled-Tuesday-Blitz-January-30-2024"]
[Site "Chess.com"]
[Date "2024.01.30"]
[Round "1"]
[White "shimastream"]
[Black "Statham_01"]
[Result "1-0"]
[WhiteElo "3023"]
[BlackElo "2528"]
[TimeControl "180+1"]
[EndTime "14:07:49 PST"]
[Termination "shimastream won by resignation"]

1. e4 {[%clk 0:03:00.9]} 1... e5 {[%clk 0:02:59.8]} 2. Nf3 {[%clk 0:02:58.8]}
2... Nf6 {[%clk 0:03:00.3]} 3. Nxe5 {[%clk 0:02:57.4]} 3... Nc6 {[%clk
0:03:00.8]} 4. Nxc6 {[%clk 0:02:55]} 4... dxc6 {[%clk 0:03:01.5]} 5. d3 {[%clk
0:02:54.6]} 5... Bc5 {[%clk 0:03:01.7]} 6. Be2 {[%clk 0:02:50.4]} 6... h5 {[%clk
0:03:01.9]} 7. h3 {[%clk 0:02:47.4]} 7... Qd4 {[%clk 0:02:59.7]} 8. O-O {[%clk
0:02:44.3]} 8... Qe5 {[%clk 0:02:59.6]} 9. Kh1 {[%clk 0:02:38.6]} 9... Ng4
{[%clk 0:02:42.7]} 10. f4 {[%clk 0:02:36]} 10... Qe7 {[%clk 0:02:43.2]} 11. Qe1
{[%clk 0:02:34.1]} 11... Bd7 {[%clk 0:02:34.1]} 12. Nc3 {[%clk 0:02:33.4]} 12...
O-O-O {[%clk 0:02:33.9]} 13. Na4 {[%clk 0:02:24.3]} 13... Bd4 {[%clk 0:02:23.4]}
14. c3 {[%clk 0:02:23.2]} 14... Bf6 {[%clk 0:02:23.7]} 15. b4 {[%clk 0:01:47.7]}
15... Bh4 {[%clk 0:02:22.1]} 16. Qd2 {[%clk 0:01:48.3]} 16... Bg3 {[%clk
0:02:18.2]} 17. Nc5 {[%clk 0:01:45.9]} 17... Qh4 {[%clk 0:02:15.3]} 18. Nxd7
{[%clk 0:01:45.1]} 18... Rxd7 {[%clk 0:02:12.4]} 19. f5 {[%clk 0:01:25.8]} 19...
Be5 {[%clk 0:02:08.3]} 20. Rf3 {[%clk 0:01:22.1]} 20... Nf2+ {[%clk 0:02:03]}
21. Kg1 {[%clk 0:01:00.1]} 21... Nxe4 {[%clk 0:02:01.3]} 22. Qe3 {[%clk
0:00:54.8]} 22... Nxc3 {[%clk 0:02:00.7]} 23. Qxe5 {[%clk 0:00:49.2]} 23... Qe1+
{[%clk 0:01:54.1]} 24. Kh2 {[%clk 0:00:49]} 24... Nxe2 {[%clk 0:01:40.6]} 25.
Bb2 {[%clk 0:00:41.5]} 25... Qd2 {[%clk 0:01:40.6]} 26. Rf2 {[%clk 0:00:41.9]}
26... Qxb4 {[%clk 0:00:57.4]} 27. Qxe2 {[%clk 0:00:41.3]} 27... Rhd8 {[%clk
0:00:55.6]} 28. Bxg7 {[%clk 0:00:40.3]} 28... Rxd3 {[%clk 0:00:55.2]} 29. Qxh5
{[%clk 0:00:39.1]} 29... Qc5 {[%clk 0:00:50.3]} 30. Raf1 {[%clk 0:00:38.4]}
30... Qd6+ {[%clk 0:00:46]} 31. Kg1 {[%clk 0:00:37.7]} 31... Qd5 {[%clk
0:00:40.8]} 32. Qg4 {[%clk 0:00:34.2]} 32... b6 {[%clk 0:00:38.8]} 33. h4 {[%clk
0:00:34.2]} 33... Kb7 {[%clk 0:00:37.4]} 34. h5 {[%clk 0:00:34.3]} 34... Re3
{[%clk 0:00:25.5]} 35. h6 {[%clk 0:00:33.8]} 35... Re4 {[%clk 0:00:26.2]} 36.
Qg3 {[%clk 0:00:31.6]} 36... Qc4 {[%clk 0:00:20.2]} 37. h7 {[%clk 0:00:31.6]}
37... Rh4 {[%clk 0:00:20.1]} 38. Bf6 {[%clk 0:00:28.8]} 38... Rg4 {[%clk
0:00:18.7]} 39. Qh2 {[%clk 0:00:26.4]} 39... Re8 {[%clk 0:00:15.2]} 40. h8=Q
{[%clk 0:00:26]} 40... Rxh8 {[%clk 0:00:15.8]} 41. Qxh8 {[%clk 0:00:25.9]} 41...
Qe4 {[%clk 0:00:14.5]} 42. Qh5 {[%clk 0:00:24.1]} 42... Rg8 {[%clk 0:00:10.2]}
43. Qxf7 {[%clk 0:00:23.4]} 43... Rg4 {[%clk 0:00:10]} 44. Qh5 {[%clk
0:00:22.8]} 44... a5 {[%clk 0:00:09.6]} 45. Qh3 {[%clk 0:00:19.1]} 45... a4
{[%clk 0:00:09.4]} 46. Qf3 {[%clk 0:00:19.2]} 46... Qc4 {[%clk 0:00:09.6]} 47.
Be5 {[%clk 0:00:18]} 47... Rg8 {[%clk 0:00:09.4]} 48. f6 {[%clk 0:00:17.9]}
48... Qf7 {[%clk 0:00:09.9]} 49. Rc1 {[%clk 0:00:17.2]} 49... Qe6 {[%clk
0:00:07.1]} 50. f7 {[%clk 0:00:17.2]} 50... Rf8 {[%clk 0:00:07.4]} 51. Bg7
{[%clk 0:00:17.3]} 1-0